fUST/lending_fUST_20250115
["ID","MTS","AMOUNT","RATE_DAILY","PERIOD"]
[349024963,1736941856206,-698.14,0.00021093,3]
[349024965,1736941856216,-1005.53,0.00021093,3]
[349024967,1736941856226,-921.61,0.00021093,3]
[349024969,1736941856235,-379.42,0.00021093,3]
[349024971,1736941856246,-1709.93,0.00021093,3]
[349024973,1736941856256,-500.0,0.00021093,3]
[349024975,1736941856265,-919.73,0.00021093,3]
[349024977,1736941856275,-500.0,0.00021094,3]
[349024979,1736941856285,-615.57,0.00021094,3]
[349024981,1736941856296,-583.51,0.00021094,3]
[349024983,1736941856307,-500.0,0.00021094,3]
[349024985,1736941856317,-500.0,0.00021094,3]
[349024987,1736941856326,-500.0,0.00021094,3]
[349024989,1736941856336,-434.86293898,0.00021094,3]
[349024997,1736941856346,-506.94,0.00021094,3]
[349024999,1736941856415,-500.0,0.00021094,3]
[349025002,1736941856425,-500.0,0.00021094,3]
[349025004,1736941856436,-500.0,0.00021094,3]
[349025006,1736941856445,-500.0,0.00021094,3]
[349025008,1736941856456,-500.0,0.00021094,3]
[349025010,1736941856465,-621.45,0.00021094,3]
[349025011,1736941856475,-169.36022459,0.00021094,3]
[349025014,1736941856485,-500.0,0.00021094,3]
[349025015,1736941856495,-500.0,0.00021094,3]
[349025017,1736941856506,-500.0,0.00021094,3]
[349025019,1736941856516,-500.0,0.00021094,3]
[349025022,1736941856526,-441.55414942,0.00021094,3]
[349025024,1736941856536,-500.0,0.00021094,3]
[349025026,1736941856546,-500.0,0.00021094,3]
[349025028,1736941856557,-1211.75,0.00021094,2]
[349025030,1736941856567,-617.73632029,0.00021094,3]
[349025032,1736941856577,-44563.32,0.00021094,3]
[349025034,1736941856589,-741.96,0.00021094,3]
[349025036,1736941856599,-500.0,0.00021094,3]
[349025038,1736941856608,-873.43,0.00021094,3]
[349025040,1736941856617,-510.83,0.00021094,3]
[349025042,1736941856627,-257.12970042,0.00021094,3]
[349025044,1736941856637,-500.0,0.00021094,3]
[349025046,1736941856647,-699.87,0.00021094,3]
[349025048,1736941856656,-500.0,0.00021094,3]
[349025050,1736941856665,-500.0,0.00021094,3]
[349025052,1736941856675,-500.0,0.00021094,3]
[349025054,1736941856684,-736.84,0.00021094,3]
[349025056,1736941856694,-500.0,0.00021094,3]
[349025058,1736941856704,-687.96,0.00021094,3]
[349025060,1736941856714,-19334.51,0.00021094,3]
[349025062,1736941856724,-500.0,0.00021094,3]
[349025064,1736941856733,-887.87,0.00021094,3]
[349025066,1736941856743,-619.17,0.00021094,3]
[349025068,1736941856753,-500.0,0.00021094,3]
[349025070,1736941856763,-500.0,0.00021094,3]
[349025072,1736941856773,-500.0,0.00021095,3]
[349025074,1736941856783,-500.0,0.00021095,3]
[349025076,1736941856793,-597.91,0.00021095,3]
[349025078,1736941856805,-500.0,0.00021095,3]
[349025080,1736941856814,-3834.85,0.00021095,3]
[349025082,1736941856824,-1842.52,0.00021095,3]
[349025084,1736941856834,-500.0,0.00021095,3]
[349025086,1736941856845,-500.0,0.00021095,3]
[349025088,1736941856855,-500.0,0.00021095,3]
[349025092,1736941856877,-3000.0,0.000211,2]
[349025094,1736941856897,-3000.0,0.0002111,2]
[349025097,1736941856915,-3000.0,0.0002112,2]
[349025100,1736941856934,-3000.0,0.0002113,2]
[349025103,1736941856953,-3000.0,0.0002114,2]
[349025106,1736941856971,-602.34339036,0.00021141,2]
[349025109,1736941856989,-500.0,0.00021147,3]
[349025111,1736941857002,-500.0,0.00021147,3]
[349025114,1736941857019,-418.9425068,0.00021147,3]
[349025117,1736941857037,-272.90112709,0.00021147,3]
[349025120,1736941857059,-500.0,0.00021147,3]
[349025123,1736941857071,-500.0,0.00021147,3]
[349025126,1736941857088,-500.0,0.00021147,3]
[349025128,1736941857103,-500.0,0.00021147,3]
[349025131,1736941857121,-788.64,0.00021147,3]
[349025133,1736941857135,-500.0,0.00021147,3]
[349025136,1736941857150,-662.35,0.00021147,3]
[349025138,1736941857165,-500.0,0.00021147,3]
[349025141,1736941857179,-500.0,0.00021147,3]
[349025143,1736941857194,-911.3,0.00021147,3]
[349025146,1736941857209,-500.0,0.00021147,3]
[349025149,1736941857224,-500.0,0.00021147,3]
[349025151,1736941857238,-500.0,0.00021147,3]
[349025154,1736941857254,-500.0,0.00021147,3]
[349025156,1736941857268,-500.0,0.00021147,3]
[349025158,1736941857282,-500.0,0.00021147,3]
[349025161,1736941857296,-500.0,0.00021147,3]
[349025163,1736941857311,-500.0,0.00021147,3]
[349025166,1736941857325,-500.0,0.00021147,3]
[349025168,1736941857340,-500.0,0.00021147,3]
[349025171,1736941857355,-500.0,0.00021147,3]
[349025173,1736941857369,-3000.0,0.0002115,2]
[349025176,1736941857384,-6408.57,0.00021153,3]
[349025178,1736941857398,-500.0,0.00021153,3]
[349025180,1736941857413,-500.0,0.00021153,3]
[349025183,1736941857428,-5326.98,0.00021153,3]
[349025185,1736941857442,-3000.0,0.0002116,2]
[349025188,1736941857458,-3000.0,0.0002117,2]
[349025190,1736941857472,-612.45117996,0.00021173,2]
[349025193,1736941857486,-4035.488206,0.0002118,2]
[349025195,1736941857501,-5987.87,0.000212,2]
[349025197,1736941857511,-574.45,0.00021229,3]
[349025199,1736941857521,-1322.86,0.0002123,3]
[349025201,1736941857531,-852.02,0.0002123,3]
[349025213,1736941857636,-730.97,0.0002123,3]
[349025215,1736941857650,-500.0,0.0002123,3]
[349025217,1736941857661,-500.0,0.0002123,3]
[349025220,1736941857671,-904.9,0.0002123,3]
[349025222,1736941857681,-585.34,0.0002123,3]
[349025223,1736941857691,-1623.31,0.0002123,3]
[349025225,1736941857701,-694.06,0.0002123,3]
[349025228,1736941857711,-698.14,0.0002123,3]
[349025230,1736941857720,-1005.53,0.0002123,3]
[349025232,1736941857730,-921.61,0.0002123,3]
[349025234,1736941857739,-1709.93,0.0002123,3]
[349025236,1736941857749,-500.0,0.0002123,3]
[349025238,1736941857759,-919.73,0.0002123,3]
[349025240,1736941857768,-500.0,0.00021231,3]
[349025242,1736941857778,-615.57,0.00021231,3]
[349025244,1736941857787,-583.51,0.00021231,3]
[349025246,1736941857797,-500.0,0.00021231,3]
[349025248,1736941857808,-500.0,0.00021231,3]
[349025250,1736941857817,-500.0,0.00021231,3]
[349025252,1736941857827,-500.0,0.00021231,3]
[349025254,1736941857836,-500.0,0.00021231,3]
[349025256,1736941857845,-500.0,0.00021231,3]
[349025258,1736941857855,-500.0,0.00021231,3]
[349025259,1736941857864,-500.0,0.00021231,3]
[349025261,1736941857875,-621.45,0.00021231,3]
[349025263,1736941857886,-500.0,0.00021231,3]
[349025265,1736941857896,-440.54256394,0.00021231,3]
[349025267,1736941857906,-500.0,0.00021231,3]
[349025269,1736941857915,-500.0,0.00021231,3]
[349025271,1736941857924,-424.82035047,0.00021231,3]
[349025273,1736941857934,-500.0,0.00021231,3]
[349025275,1736941857943,-1211.75,0.00021231,2]
[349025277,1736941857953,-37148.60879818,0.00021231,3]
[349026664,1736942465879,175.312586,0.00013973,2]
[349026700,1736943032306,-269.28834817,0.000189,2]
[349026702,1736943032316,-322.2590687,0.00018908,2]
[349026704,1736943032327,-169.764469,0.00019178,2]
[349026706,1736943032337,-198.12045201,0.00019788,2]
[349026708,1736943032347,-300.0,0.00019993,2]
[349026724,1736943032471,-250.0,0.00019994,2]
[349026726,1736943032481,-235.5009296,0.00019994,2]
[349026728,1736943032491,-500.0,0.00019994,2]
[349026730,1736943032500,-193.61763936,0.00019994,2]
[349026732,1736943032510,-248.05933369,0.00019994,2]
[349026734,1736943032524,-500.0,0.00019994,3]
[349026735,1736943032533,-286.02741537,0.00019994,3]
[349026738,1736943032545,-216.23161562,0.00019994,3]
[349026739,1736943032557,-858.06838438,0.00019994,3]
[349027274,1736943038155,-139.63161562,0.00019994,3]
[349027277,1736943038164,-638.85,0.00019994,3]
[349027279,1736943038174,-540.81,0.00019994,3]
[349027281,1736943038183,-500.0,0.00019994,3]
[349027283,1736943038193,-500.0,0.00019994,3]
[349027285,1736943038202,-500.0,0.00019994,3]
[349027287,1736943038211,-500.0,0.00019994,3]
[349027289,1736943038221,-674.2,0.00019994,3]
[349027290,1736943038231,-500.0,0.00019994,3]
[349027293,1736943038240,-500.0,0.00019994,3]
[349027295,1736943038251,-500.0,0.00019994,3]
[349027297,1736943038260,-500.0,0.00019994,3]
[349027299,1736943038269,-500.0,0.00019994,3]
[349027301,1736943038279,-762.72,0.00019994,3]
[349027302,1736943038288,-705.35,0.00019994,3]
[349027304,1736943038297,-1259.12,0.00019994,3]
[349027306,1736943038309,-1163.39,0.00019994,3]
[349027308,1736943038319,-573.21,0.00019994,3]
[349027310,1736943038328,-500.0,0.00019994,3]
[349027312,1736943038338,-500.0,0.00019994,3]
[349027314,1736943038347,-724.23,0.00019994,3]
[349027317,1736943038357,-500.0,0.00019994,3]
[349027319,1736943038366,-500.0,0.00019994,3]
[349027321,1736943038375,-500.0,0.00019994,3]
[349027323,1736943038385,-500.0,0.00019994,3]
[349027325,1736943038395,-7955.54069606,0.00019994,3]
[349027513,1736943040208,-18675.57930394,0.00019994,3]
[349027515,1736943040218,-500.0,0.00019994,3]
[349027517,1736943040228,-574.85,0.00019994,3]
[349027519,1736943040238,-2640.0,0.00019994,3]
[349027522,1736943040248,-500.0,0.00019994,3]
[349027523,1736943040258,-678.64,0.00019994,3]
[349027524,1736943040267,-500.0,0.00019994,3]
[349027525,1736943040276,-625.04847412,0.00019994,3]
[349027526,1736943040287,-518.21,0.00019994,3]
[349027528,1736943040297,-500.0,0.00019994,3]
[349027530,1736943040310,-500.0,0.00019994,3]
[349027533,1736943040320,-500.0,0.00019995,3]
[349027535,1736943040330,-500.0,0.00019995,3]
[349027536,1736943040339,-500.0,0.00019995,3]
[349027538,1736943040350,-500.0,0.00019995,3]
[349027541,1736943040360,-638.56564379,0.00019995,3]
[349027543,1736943040370,-500.0,0.00019995,3]
[349027545,1736943040379,-500.0,0.00019995,3]
[349027546,1736943040390,-500.0,0.00019995,3]
[349027549,1736943040399,-500.0,0.00019995,3]
[349027550,1736943040408,-500.0,0.00019995,3]
[349027553,1736943040418,-500.0,0.00019995,3]
[349027555,1736943040428,-500.0,0.00019995,3]
[349027557,1736943040438,-207.26516128,0.00019995,3]
[349027558,1736943040447,-500.0,0.00019995,3]
[349027560,1736943040457,-500.0,0.00019995,3]
[349027563,1736943040467,-500.0,0.00019995,3]
[349027565,1736943040477,-500.0,0.00019995,3]
[349027567,1736943040487,-500.0,0.00019995,3]
[349027569,1736943040496,-500.0,0.00019995,3]
[349027571,1736943040507,-500.0,0.00019995,3]
[349027573,1736943040519,-500.0,0.00019995,3]
[349027575,1736943040528,-500.0,0.00019995,3]
[349027577,1736943040537,-500.0,0.00019995,3]
[349027579,1736943040547,-500.0,0.00019995,3]
[349027581,1736943040560,-500.0,0.00019995,3]
[349027583,1736943040569,-500.0,0.00019995,3]
[349027585,1736943040579,-500.0,0.00019995,3]
[349027587,1736943040589,-212.00545228,0.00019995,3]
[349027589,1736943040599,-500.0,0.00019995,3]
[349027591,1736943040609,-549.06630047,0.00019995,3]
[349027593,1736943040618,-217.1795765,0.00019995,3]
[349027595,1736943040631,-282.8204235,0.00019995,3]
[349027597,1736943040640,-115.92906424,0.00019995,3]
[349027858,1736943043152,-500.0,0.00019994,3]
[349027860,1736943043162,-384.07093576,0.00019995,3]
[349027862,1736943043172,-115.92906424,0.00019995,3]
[349027867,1736943043204,-384.07093576,0.00019995,3]
[349027869,1736943043213,-500.0,0.00019995,3]
[349027871,1736943043222,-500.0,0.00019995,3]
[349027873,1736943043231,-500.0,0.00019995,3]
[349027875,1736943043241,-500.0,0.00019995,3]
[349027878,1736943043250,-500.0,0.00019995,3]
[349027881,1736943043259,-500.0,0.00019995,3]
[349027883,1736943043268,-500.0,0.00019995,3]
[349027885,1736943043277,-500.0,0.00019995,3]
[349027887,1736943043287,-500.0,0.00019995,3]
[349027889,1736943043299,-508.08226451,0.00019995,3]
[349027892,1736943043312,-500.0,0.00019995,3]
[349027893,1736943043321,-500.0,0.00019995,3]
[349027895,1736943043330,-500.0,0.00019995,3]
[349027897,1736943043340,-500.0,0.00019995,3]
[349027899,1736943043350,-500.0,0.00019995,3]
[349027901,1736943043360,-501.86505248,0.00019995,3]
[349027903,1736943043369,-500.68961735,0.00019995,3]
[349027905,1736943043379,-500.0,0.00019995,3]
[349027907,1736943043389,-500.0,0.00019995,3]
[349027909,1736943043399,-500.0,0.00019995,3]
[349027911,1736943043408,-706.86,0.00019995,2]
[349027913,1736943043417,-649.78818451,0.00019995,3]
[349027915,1736943043427,-500.0,0.00019995,3]
[349027917,1736943043437,-500.0,0.00019995,3]
[349027919,1736943043446,-500.0,0.00019995,3]
[349027921,1736943043456,-500.0,0.00019995,3]
[349027923,1736943043465,-598.51860926,0.00019995,3]
[349027925,1736943043475,-500.0,0.00019995,3]
[349027927,1736943043485,-510.78865784,0.00019995,3]
[349027930,1736943043495,-410.29659809,0.00019995,3]
[349027931,1736943043504,-500.0,0.00019995,3]
[349027933,1736943043515,-500.0,0.00019995,3]
[349027935,1736943043527,-500.0,0.00019995,3]
[349027937,1736943043536,-500.0,0.00019995,3]
[349027939,1736943043546,-500.0,0.00019995,3]
[349027941,1736943043559,-529.91499423,0.00019995,3]
[349027943,1736943043569,-516.50708938,0.00019995,3]
[349027945,1736943043580,-269.18070999,0.00019995,3]
[349027947,1736943043590,-500.0,0.00019995,3]
[349027955,1736943043696,-500.0,0.00019995,3]
[349027957,1736943043707,-500.0,0.00019995,3]
[349027959,1736943043717,-500.0,0.00019995,3]
[349027960,1736943043728,-500.0,0.00019995,3]
[349027962,1736943043738,-500.0,0.00019995,3]
[349027964,1736943043748,-515.40166202,0.00019995,3]
[349027966,1736943043758,-394.20190693,0.00019995,3]
[349027968,1736943043769,-500.0,0.00019995,3]
[349027969,1736943043778,-574.0,0.00019995,3]
[349027971,1736943043788,-500.0,0.00019995,3]
[349027973,1736943043798,-500.0,0.00019995,3]
[349027975,1736943043814,-500.0,0.00019995,3]
[349027977,1736943043824,-500.0,0.00019995,3]
[349027979,1736943043833,-500.0,0.00019995,3]
[349027980,1736943043842,-500.0,0.00019995,3]
[349027982,1736943043852,-500.0,0.00019995,3]
[349027984,1736943043862,-548.12,0.00019995,3]
[349027986,1736943043871,-500.0,0.00019995,3]
[349027988,1736943043881,-500.0,0.00019995,3]
[349027990,1736943043892,-500.0,0.00019995,3]
[349027991,1736943043902,-511.88113369,0.00019995,3]
[349027993,1736943043911,-500.0,0.00019995,3]
[349027995,1736943043921,-500.0,0.00019995,3]
[349027997,1736943043930,-500.0,0.00019995,3]
[349027999,1736943043939,-518.46424143,0.00019995,3]
[349028001,1736943043949,-500.0,0.00019995,3]
[349028003,1736943043958,-14963.81,0.00019995,3]
[349028005,1736943043969,-500.0,0.00019995,3]
[349028007,1736943043978,-500.0,0.00019995,3]
[349028009,1736943043988,-500.0,0.00019995,3]
[349028011,1736943043998,-500.0,0.00019995,3]
[349028013,1736943044006,-500.0,0.00019995,3]
[349028015,1736943044015,-500.0,0.00019995,3]
[349028017,1736943044024,-560.32888132,0.00019995,3]
[349028019,1736943044033,-500.0,0.00019995,3]
[349028021,1736943044042,-623.75,0.00019995,3]
[349028023,1736943044051,-500.0,0.00019995,3]
[349028025,1736943044064,-500.0,0.00019995,3]
[349028027,1736943044074,-515.3847759,0.00019995,3]
[349028029,1736943044083,-500.0,0.00019995,3]
[349028031,1736943044092,-500.0,0.00019995,3]
[349028033,1736943044101,-500.0,0.00019995,3]
[349028035,1736943044113,-500.0,0.00019995,3]
[349028037,1736943044122,-500.0,0.00019995,3]
[349028039,1736943044132,-500.0,0.00019995,3]
[349028040,1736943044141,-500.0,0.00019995,3]
[349028042,1736943044150,-512.68794293,0.00019995,3]
[349028044,1736943044160,-500.0,0.00019995,3]
[349028046,1736943044169,-500.0,0.00019995,3]
[349028047,1736943044178,-516.86481107,0.00019995,3]
[349028049,1736943044188,-500.0,0.00019995,3]
[349028051,1736943044197,-500.0,0.00019995,3]
[349028052,1736943044206,-500.0,0.00019995,3]
[349028053,1736943044216,-488.444889,0.00019995,2]
[349028054,1736943044225,-519.48586166,0.00019995,3]
[349028056,1736943044235,-505.85163815,0.00019995,3]
[349028058,1736943044244,-500.0,0.00019995,3]
[349028060,1736943044253,-500.0,0.00019995,3]
[349028062,1736943044263,-500.0,0.00019995,3]
[349028064,1736943044271,-528.48245023,0.00019995,3]
[349028065,1736943044280,-514.15261162,0.00019995,3]
[349028067,1736943044290,-500.0,0.00019995,3]
[349028069,1736943044301,-500.0,0.00019995,3]
[349028071,1736943044313,-500.0,0.00019995,3]
[349028072,1736943044322,-500.0,0.00019995,3]
[349028074,1736943044331,-500.0,0.00019995,3]
[349028076,1736943044340,-500.0,0.00019995,3]
[349028078,1736943044350,-500.0,0.00019995,3]
[349028080,1736943044359,-500.0,0.00019995,3]
[349028081,1736943044370,-500.0,0.00019995,3]
[349028083,1736943044380,-500.0,0.00019995,3]
[349028085,1736943044390,-500.0,0.00019995,3]
[349028087,1736943044400,-500.0,0.00019995,3]
[349028089,1736943044409,-192.78116122,0.00019995,3]
[349028090,1736943044418,-500.0,0.00019995,3]
[349028092,1736943044428,-500.0,0.00019995,3]
[349028094,1736943044438,-556.35737558,0.00019995,3]
[349028096,1736943044448,-587.20430714,0.00019995,3]
[349028097,1736943044458,-593.39050278,0.00019995,3]
[349028099,1736943044467,-500.0,0.00019995,3]
[349028101,1736943044477,-500.0,0.00019995,3]
[349028103,1736943044486,-516.2492969,0.00019995,3]
[349028104,1736943044496,-500.0,0.00019995,3]
[349028105,1736943044506,-513.56590105,0.00019995,3]
[349028106,1736943044518,-500.0,0.00019995,3]
[349028107,1736943044529,-2849.95,0.00019995,3]
[349028108,1736943044539,-500.0,0.00019995,3]
[349028109,1736943044550,-500.0,0.00019995,3]
[349028110,1736943044565,-500.0,0.00019995,3]
[349028111,1736943044576,-600.28,0.00019995,3]
[349028112,1736943044586,-500.0,0.00019995,3]
[349028113,1736943044597,-500.0,0.00019995,3]
[349028114,1736943044607,-500.0,0.00019995,3]
[349028115,1736943044618,-500.0,0.00019995,3]
[349028116,1736943044628,-175.477,0.00019996,2]
[349028117,1736943044638,-254.00863574,0.00019996,3]
[349028118,1736943044647,-500.0,0.00019996,3]
[349028119,1736943044656,-500.0,0.00019996,3]
[349028120,1736943044665,-500.0,0.00019996,3]
[349028121,1736943044675,-500.0,0.00019996,3]
[349028122,1736943044684,-500.0,0.00019996,3]
[349028123,1736943044694,-749.87,0.00019996,3]
[349028124,1736943044704,-500.0,0.00019996,3]
[349028125,1736943044714,-500.0,0.00019996,3]
[349028126,1736943044724,-158.4815261,0.00019996,3]
[349028127,1736943044733,-500.0,0.00019996,3]
[349028128,1736943044743,-334.86,0.00019996,3]
[349028129,1736943044752,-498.10414478,0.00019997,3]
[349028130,1736943044765,-500.0,0.00019997,3]
[349028131,1736943044774,-500.0,0.00019997,3]
[349028132,1736943044784,-500.0,0.00019997,3]
[349028133,1736943044793,-500.0,0.00019997,3]
[349028134,1736943044802,-514.05561348,0.00019997,3]
[349028135,1736943044815,-500.0,0.00019997,3]
[349028136,1736943044826,-500.0,0.00019997,3]
[349028137,1736943044836,-500.0,0.00019997,3]
[349028138,1736943044847,-500.0,0.00019997,3]
[349028139,1736943044857,-516.71877764,0.00019997,3]
[349028140,1736943044866,-500.0,0.00019997,3]
[349028141,1736943044877,-500.0,0.00019997,3]
[349028142,1736943044887,-500.0,0.00019997,3]
[349028143,1736943044897,-500.0,0.00019997,3]
[349028144,1736943044907,-500.0,0.00019997,3]
[349028145,1736943044917,-500.0,0.00019997,3]
[349028146,1736943044926,-500.0,0.00019997,3]
[349028147,1736943044936,-500.0,0.00019997,3]
[349028148,1736943044946,-451.95790595,0.00019997,3]
[349028149,1736943044955,-1000.0,0.00019997,3]
[349028150,1736943044965,-500.0,0.00019997,3]
[349028151,1736943044975,-500.0,0.00019997,3]
[349028152,1736943044984,-500.0,0.00019997,3]
[349028153,1736943044994,-505.20994744,0.00019997,3]
[349028154,1736943045004,-500.0,0.00019997,3]
[349028155,1736943045013,-500.0,0.00019997,3]
[349028156,1736943045023,-500.0,0.00019997,3]
[349028157,1736943045033,-506.49772625,0.00019997,3]
[349028158,1736943045042,-500.0,0.00019997,3]
[349028159,1736943045052,-500.0,0.00019997,3]
[349028160,1736943045065,-500.0,0.00019997,3]
[349028161,1736943045074,-501.54170248,0.00019997,3]
[349028162,1736943045085,-500.0,0.00019997,3]
[349028163,1736943045095,-500.0,0.00019997,3]
[349028164,1736943045106,-500.0,0.00019997,3]
[349028165,1736943045117,-512.75450292,0.00019997,3]
[349028166,1736943045129,-500.0,0.00019997,3]
[349028167,1736943045139,-508.58556569,0.00019997,3]
[349028168,1736943045150,-500.0,0.00019997,3]
[349028169,1736943045160,-501.01000424,0.00019997,3]
[349028170,1736943045169,-500.0,0.00019997,3]
[349028171,1736943045178,-519.66142301,0.00019997,3]
[349028172,1736943045187,-500.0,0.00019997,3]
[349028173,1736943045196,-522.65107004,0.00019997,3]
[349028174,1736943045205,-500.0,0.00019997,3]
[349028175,1736943045214,-500.0,0.00019998,3]
[349028176,1736943045225,-591.40379483,0.00019998,3]
[349028177,1736943045235,-750.0,0.00019998,2]
[349028178,1736943045245,-500.0,0.00019999,3]
[349028179,1736943045255,-500.0,0.00019999,3]
[349028180,1736943045264,-500.0,0.00019999,3]
[349028181,1736943045274,-500.0,0.00019999,3]
[349028182,1736943045284,-500.0,0.00019999,3]
[349028183,1736943045294,-5141.65,0.00019999,3]
[349028184,1736943045304,-500.0,0.00019999,3]
[349028185,1736943045315,-500.0,0.00019999,3]
[349028186,1736943045326,-4706.62,0.00019999,3]
[349028187,1736943045337,-1286.0,0.0002,2]
[349028188,1736943045349,-997.7,0.00020131,3]
[349028189,1736943045360,-638.85,0.00020131,3]
[349028190,1736943045372,-540.81,0.00020131,3]
[349028191,1736943045382,-500.0,0.00020131,3]
[349028192,1736943045393,-500.0,0.00020131,3]
[349028193,1736943045403,-500.0,0.00020131,3]
[349028194,1736943045414,-674.2,0.00020131,3]
[349028195,1736943045424,-500.0,0.00020131,3]
[349028196,1736943045434,-500.0,0.00020131,3]
[349028197,1736943045443,-389.65066509,0.00020131,3]
[349028198,1736943045453,-500.0,0.00020131,3]
[349028199,1736943045464,-500.0,0.00020131,3]
[349028200,1736943045474,-762.72,0.00020131,3]
[349028201,1736943045484,-705.35,0.00020131,3]
[349028202,1736943045495,-1259.12,0.00020131,3]
[349028203,1736943045505,-1163.39,0.00020131,3]
[349028204,1736943045515,-573.21,0.00020131,3]
[349028205,1736943045527,-500.0,0.00020131,3]
[349028206,1736943045537,-500.0,0.00020131,3]
[349028207,1736943045547,-724.23,0.00020131,3]
[349028209,1736943045560,-500.0,0.00020131,3]
[349028210,1736943045569,-500.0,0.00020131,3]
[349028211,1736943045579,-500.0,0.00020131,3]
[349028212,1736943045589,-26631.12,0.00020131,3]
[349028213,1736943045601,-500.0,0.00020131,3]
[349028215,1736943045611,-574.85,0.00020131,3]
[349028217,1736943045620,-142.2812269,0.00020131,3]
[349028289,1736943046152,-561.21,0.00019995,3]
[349028290,1736943046163,-500.0,0.00019995,3]
[349028291,1736943046173,-2497.7187731,0.00020131,3]
[349028292,1736943046182,-500.0,0.00020131,3]
[349028293,1736943046192,-678.64,0.00020131,3]
[349028294,1736943046202,-500.0,0.00020131,3]
[349028295,1736943046212,-518.21,0.00020131,3]
[349028296,1736943046222,-500.0,0.00020131,3]
[349028297,1736943046232,-500.0,0.00020131,3]
[349028298,1736943046241,-500.0,0.00020132,3]
[349028299,1736943046251,-474.68227853,0.00020132,3]
[349028300,1736943046261,-500.0,0.00020132,3]
[349028301,1736943046271,-500.0,0.00020132,3]
[349028302,1736943046282,-500.0,0.00020132,3]
[349028303,1736943046292,-500.0,0.00020132,3]
[349028304,1736943046303,-500.0,0.00020132,3]
[349028305,1736943046315,-500.0,0.00020132,3]
[349028306,1736943046325,-500.0,0.00020132,3]
[349028307,1736943046335,-500.0,0.00020132,3]
[349028308,1736943046345,-500.0,0.00020132,3]
[349028309,1736943046355,-500.0,0.00020132,3]
[349028310,1736943046365,-500.0,0.00020132,3]
[349028311,1736943046375,-500.0,0.00020132,3]
[349028312,1736943046385,-500.0,0.00020132,3]
[349028313,1736943046395,-500.0,0.00020132,3]
[349028314,1736943046404,-500.0,0.00020132,3]
[349028315,1736943046414,-500.0,0.00020132,3]
[349028316,1736943046424,-500.0,0.00020132,3]
[349028317,1736943046434,-500.0,0.00020132,3]
[349028318,1736943046443,-500.0,0.00020132,3]
[349028319,1736943046453,-500.0,0.00020132,3]
[349028320,1736943046463,-500.0,0.00020132,3]
[349028321,1736943046473,-500.0,0.00020132,3]
[349028322,1736943046483,-500.0,0.00020132,3]
[349028323,1736943046492,-500.0,0.00020132,3]
[349028324,1736943046502,-500.0,0.00020132,3]
[349028325,1736943046511,-500.0,0.00020132,3]
[349028326,1736943046523,-500.0,0.00020132,3]
[349028327,1736943046533,-500.0,0.00020132,3]
[349028328,1736943046543,-506.69847985,0.00020132,3]
[349028329,1736943046554,-500.0,0.00020132,3]
[349028330,1736943046565,-500.0,0.00020132,3]